[Event "4NCL Div 2 2024-25"]
[Site "England"]
[Date "2025.04.05"]
[Round "7.19"]
[White "Wall, Tim P"]
[Black "Page, Mark E"]
[Result "1-0"]
[Annotator "ChessBase"]
[ECO "D01"]
[WhiteElo "2168"]
[BlackElo "2049"]
[PlyCount "105"]
[EventDate "2024.11.23"]
[EventType "team-tourn"]
[EventCountry "ENG"]
[SourceTitle "playchess.com"]
[Source "ChessBase"]
[SourceQuality "1"]
[TimeControl "40/6000+30:3000+30"]

1. d4 {[%emt 0:10:11]} Nf6 {[%emt 0:10:21]} 2. Bg5 {[%emt 0:00:31]} d5 {[%emt 0:00:24]} 3. Nc3 {[%emt 0:00:18]} Nbd7 {[%emt 0:00:47]} 4. Nf3 {[%emt 0:00:37]} h6 {[%emt 0:01:24]} 5. Bf4 {[%emt 0:02:23]} a6 {[%emt 0:00:42]} 6. e3 {[%emt 0:02:13]} e6 {[%emt 0:01:25]} 7. Bd3 {[%emt 0:03:54]} c5 {[%emt 0:02:46]} 8. O-O {[%emt 0:00:36]} Be7 {[%emt 0:10:32]} 9. Ne5 {[%emt 0:01:25]} O-O {[%emt 0:02:18]} 10. Qf3 {[%emt 0:04:56]} c4 {[%emt 0:06:47]} 11. Be2 {[%emt 0:00:49]} Nxe5 {[%emt 0:05:15]} 12. dxe5 {[%emt 0:10:04]} Nd7 {[%emt 0:01:05]} 13. Qg3 {[%emt 0:08:33]} Bg5 {[%emt 0:08:39]} 14. Rad1 {[%emt 0:06:43]} b5 {[%emt 0:08:17]} 15. e4 {[%emt 0:09:51]} Bxf4 {[%emt 0:08:01]} 16. Qxf4 {[%emt 0:00:12]} b4 {[%emt 0:04:20]} 17. Nb1 {[%emt 0:03:06]} Bb7 {[%emt 0:02:49]} 18. exd5 {[%emt 0:06:32]} exd5 {[%emt 0:02:44]} 19. Qd4 {[%emt 0:37:06]} Rc8 {[%emt 0:08:15]} 20. Bg4 {[%emt 0:00:00]} Rc7 {[%emt 0:07:13]} 21. f4 {[%emt 0:00:00]} Re8 {[%emt 0:01:21]} 22. Nd2 {[%emt 0:00:00]} Nf8 {[%emt 0:03:05]} 23. f5 {[%emt 0:00:00]} Qe7 {[%emt 0:01:02]} 24. Nf3 {[%emt 0:00:00]} Qc5 {[%emt 0:00:56]} 25. Rfe1 {[%emt 0:00:00]} Nd7 {[%emt 0:02:42]} 26. Bh5 {[%emt 0:00:00]} Re7 {[%emt 0:03:36]} 27. e6 {[%emt 0:00:00]} fxe6 {[%emt 0:01:22]} 28. fxe6 {[%emt 0:04:30]} Nf6 {[%emt 0:00:54]} 29. Bf7+ {[%emt 0:00:00]} Rxf7 {[%emt 0:00:40]} 30. exf7+ {[%emt 0:00:00]} Kxf7 {[%emt 0:00:32]} 31. Ne5+ {[%emt 0:00:00]} Kg8 {[%emt 0:00:10]} 32. Ng6 {[%emt 0:00:00]} Qxd4+ {[%emt 0:00:51]} 33. Rxd4 {[%emt 0:00:00]} Kf7 {[%emt 0:00:22]} 34. Nf4 {[%emt 0:00:00]} a5 {[%emt 0:02:06]} 35. h3 {[%emt 0:00:14]} Re7 {[%emt 0:01:56]} 36. Rdd1 {[%emt 0:00:44]} g5 {[%emt 0:00:47]} 37. Rxe7+ {[%emt 0:00:54]} Kxe7 {[%emt 0:00:01]} 38. Ne2 {[%emt 0:00:41]} Ne4 {[%emt 0:01:12]} 39. Nd4 {[%emt 0:00:10]} Kf6 {[%emt 0:00:19]} 40. Kf1 {[%emt 0:00:44]} h5 {[%emt 0:01:05]} 41. Ke2 {[%emt 0:52:31]} a4 {[%emt 0:31:30]} 42. Ke3 {[%emt 0:00:00]} g4 {[%emt 0:05:14]} 43. hxg4 {[%emt 0:00:00]} hxg4 {[%emt 0:00:07]} 44. Rh1 {[%emt 0:00:00]} a3 {[%emt 0:00:35]} 45. bxa3 {[%emt 0:00:00]} bxa3 {[%emt 0:00:07]} 46. Rb1 {[%emt 0:00:00]} Bc8 {[%emt 0:00:51]} 47. Rb8 {[%emt 0:00:00]} Bd7 {[%emt 0:00:20]} 48. Rb7 {[%emt 0:00:00]} Be8 {[%emt 0:01:19]} 49. Ra7 {[%emt 0:00:00]} Kg5 {[%emt 0:01:24]} 50. Rxa3 {[%emt 0:00:00]} g3 {[%emt 0:06:55]} 51. Ra5 {[%emt 0:00:00]} Nc3 {[%emt 0:02:46]} 52. Ne2 {[%emt 0:00:00]} Nb5 {[%emt 0:03:08]} 53. a4 {[%emt 0:06:32]} 1-0

[Event "4NCL Div 2 2024-25"]
[Site "England"]
[Date "2025.04.05"]
[Round "7.20"]
[White "Paterson, Andrew I"]
[Black "Chan, Sheng Liang Bernard"]
[Result "0-1"]
[Annotator "NA"]
[ECO "E37"]
[WhiteElo "1976"]
[BlackElo "2101"]
[PlyCount "80"]
[EventDate "2024.11.23"]
[EventType "team-tourn"]
[EventCountry "ENG"]
[SourceTitle "playchess.com"]
[Source "ChessBase"]
[SourceQuality "1"]
[TimeControl "40/6000+30:3000+30"]

1. d4 {[%emt 0:10:04]} Nf6 {[%emt 0:10:22]} 2. c4 {[%emt 0:00:27]} e6 {[%emt 0:00:15]} 3. Nc3 {[%emt 0:00:48]} Bb4 {[%emt 0:00:12]} 4. Qc2 {[%emt 0:00:29]} O-O {[%emt 0:01:43]} 5. Nf3 {[%emt 0:00:17]} d5 {[%emt 0:01:49]} 6. a3 {[%emt 0:01:13]} Bxc3+ {[%emt 0:00:20]} 7. Qxc3 {[%emt 0:00:22]} Ne4 {[%emt 0:00:13]} 8. Qc2 {[%emt 0:00:35]} c5 {[%emt 0:04:56]} 9. dxc5 {[%emt 0:01:45]} a5 {[%emt 0:00:26]} 10. e3 {[%emt 0:01:44]} Nd7 {[%emt 0:00:15]} 11. cxd5 {[%emt 0:03:02]} exd5 {[%emt 0:00:18]} 12. c6 {[%emt 0:03:34]} Ndc5 {[%emt 0:02:29]} 13. Nd4 {[%emt 0:09:32]} Qf6 {[%emt 0:08:34]} 14. f3 {[%emt 0:18:56]} Qh4+ {[%emt 0:00:02]} 15. g3 {[%emt 0:00:37]} Nxg3 {[%emt 0:00:21]} 16. Qf2 {[%emt 0:11:07]} Nf5 {[%emt 0:00:30]} 17. Qxh4 {[%emt 0:03:49]} Nxh4 {[%emt 0:00:02]} 18. cxb7 {[%emt 0:02:10]} Bxb7 {[%emt 0:01:24]} 19. Bd2 {[%emt 0:01:32]} Ne6 {[%emt 0:01:36]} 20. Kf2 {[%emt 0:05:12]} Nxd4 {[%emt 0:03:44]} 21. exd4 {[%emt 0:00:02]} Ba6 {[%emt 0:05:29]} 22. Rc1 {[%emt 0:07:28]} Rfb8 {[%emt 0:02:34]} 23. b4 {[%emt 0:00:52]} axb4 {[%emt 0:04:10]} 24. Bxb4 {[%emt 0:00:34]} Nf5 {[%emt 0:00:33]} 25. Rc5 {[%emt 0:01:08]} Bb7 {[%emt 0:00:23]} 26. Bh3 {[%emt 0:12:07]} Nxd4 {[%emt 0:00:42]} 27. Rc7 {[%emt 0:02:56]} Bc8 {[%emt 0:03:13]} 28. Bxc8 {[%emt 0:07:28]} Rxc8 {[%emt 0:00:02]} 29. Rxc8+ {[%emt 0:01:45]} Rxc8 {[%emt 0:00:35]} 30. Rd1 {[%emt 0:00:03]} Rc4 {[%emt 0:02:56]} 31. Ke3 {[%emt 0:03:40]} Nc2+ {[%emt 0:01:45]} 32. Kf2 {[%emt 0:00:02]} d4 {[%emt 0:02:39]} 33. Bd6 {[%emt 0:00:17]} f6 {[%emt 0:00:26]} 34. Rd2 {[%emt 0:01:07]} Kf7 {[%emt 0:00:58]} 35. Bb8 {[%emt 0:00:40]} Nxa3 {[%emt 0:00:24]} 36. Ke2 {[%emt 0:00:28]} Ke6 {[%emt 0:02:03]} 37. Kd3 {[%emt 0:00:29]} Kd5 {[%emt 0:01:56]} 38. Ra2 {[%emt 0:00:15]} Rc3+ {[%emt 0:00:22]} 39. Ke2 {[%emt 0:00:21]} Kc4 {[%emt 0:00:35]} 40. Bd6 {[%emt 0:00:25]} Rc2+ {[%emt 0:00:12]} 0-1

[Event "4NCL Div 2 2024-25"]
[Site "England"]
[Date "2025.04.05"]
[Round "7.21"]
[White "Arnott, Jonathan W"]
[Black "Baer, Bruce L"]
[Result "1-0"]
[Annotator "NA"]
[ECO "B06"]
[WhiteElo "2087"]
[BlackElo "1962"]
[PlyCount "35"]
[EventDate "2024.11.23"]
[EventType "team-tourn"]
[EventCountry "ENG"]
[SourceTitle "playchess.com"]
[Source "ChessBase"]
[SourceQuality "1"]
[TimeControl "40/6000+30:3000+30"]

1. e4 {[%emt 0:10:03]} g6 {[%emt 0:10:06]} 2. d4 {[%emt 0:00:09]} Bg7 {[%emt 0:00:05]} 3. Nc3 {[%emt 0:00:10]} a6 {[%emt 0:00:05]} 4. f4 {[%emt 0:00:24]} b5 {[%emt 0:00:09]} 5. Nf3 {[%emt 0:00:06]} d6 {[%emt 0:00:06]} 6. Bd3 {[%emt 0:00:09]} Bb7 {[%emt 0:00:07]} 7. Qe2 {[%emt 0:00:05]} c5 {[%emt 0:02:20]} 8. dxc5 {[%emt 0:06:01]} dxc5 {[%emt 0:01:13]} 9. e5 {[%emt 0:00:06]} Nh6 {[%emt 0:07:02]} 10. a4 {[%emt 0:12:58]} Qa5 {[%emt 0:14:28]} 11. Bd2 {[%emt 0:03:29]} b4 {[%emt 0:02:07]} 12. Ne4 {[%emt 0:01:16]} O-O {[%emt 0:00:32]} 13. O-O {[%emt 0:02:49]} Nf5 {[%emt 0:21:22]} 14. g4 {[%emt 0:06:13]} Nd4 {[%emt 0:01:39]} 15. Nxd4 {[%emt 0:01:11]} cxd4 {[%emt 0:01:17]} 16. Qe1 {[%emt 0:05:00]} Nc6 {[%emt 0:07:58]} 17. b3 {[%emt 0:04:50]} e6 {[%emt 0:15:58]} 18. g5 {[%emt 0:06:11]} 1-0

[Event "4NCL Div 2 2024-25"]
[Site "England"]
[Date "2025.04.05"]
[Round "7.22"]
[White "Patel, Keatan"]
[Black "Gayson, Peter M"]
[Result "1/2-1/2"]
[Annotator "NA"]
[ECO "B22"]
[WhiteElo "1973"]
[BlackElo "2087"]
[PlyCount "35"]
[EventDate "2024.11.23"]
[EventType "team-tourn"]
[EventCountry "ENG"]
[SourceTitle "playchess.com"]
[Source "ChessBase"]
[SourceQuality "1"]
[TimeControl "40/6000+30:3000+30"]

1. e4 {[%emt 0:10:32]} c5 {[%emt 0:10:18]} 2. Nf3 {[%emt 0:00:06]} e6 {[%emt 0:00:10]} 3. c3 {[%emt 0:00:08]} d5 {[%emt 0:00:45]} 4. exd5 {[%emt 0:01:29]} exd5 {[%emt 0:00:54]} 5. d4 {[%emt 0:00:23]} Nf6 {[%emt 0:00:56]} 6. Bb5+ {[%emt 0:00:36]} Nc6 {[%emt 0:02:24]} 7. O-O {[%emt 0:00:08]} cxd4 {[%emt 0:00:57]} 8. Nxd4 {[%emt 0:04:03]} Bd7 {[%emt 0:02:28]} 9. Re1+ {[%emt 0:05:00]} Be7 {[%emt 0:01:40]} 10. Qe2 {[%emt 0:18:28]} Nxd4 {[%emt 0:19:20]} 11. Bxd7+ {[%emt 0:00:04]} Qxd7 {[%emt 0:00:46]} 12. cxd4 {[%emt 0:00:11]} Kf8 {[%emt 0:05:26]} 13. Nc3 {[%emt 0:18:31]} Re8 {[%emt 0:07:12]} 14. Bf4 {[%emt 0:11:34]} Bb4 {[%emt 0:10:31]} 15. Qd3 {[%emt 0:01:10]} Re6 {[%emt 0:03:08]} 16. a3 {[%emt 0:09:27]} Bxc3 {[%emt 0:04:29]} 17. bxc3 {[%emt 0:00:12]} h6 {[%emt 0:07:44]} 18. Be5 {[%emt 0:08:20]} 1/2-1/2

[Event "4NCL Div 2 2024-25"]
[Site "England"]
[Date "2025.04.05"]
[Round "7.23"]
[White "Edwards-Wright, Miles D"]
[Black "Cundy, Mark A"]
[Result "1/2-1/2"]
[Annotator "NA"]
[ECO "A10"]
[WhiteElo "1970"]
[BlackElo "1914"]
[PlyCount "127"]
[EventDate "2024.11.23"]
[EventType "team-tourn"]
[EventCountry "ENG"]
[SourceTitle "playchess.com"]
[Source "ChessBase"]
[SourceQuality "1"]
[TimeControl "40/6000+30:3000+30"]

1. g3 {[%emt 0:34:57]} g6 {[%emt 0:10:51]} 2. Bg2 {[%emt 0:00:36]} Bg7 {[%emt 0:00:08]} 3. c4 {[%emt 0:00:03]} d6 {[%emt 0:00:26]} 4. Nc3 {[%emt 0:00:14]} f5 {[%emt 0:00:43]} 5. b3 {[%emt 0:01:51]} Nf6 {[%emt 0:00:47]} 6. Bb2 {[%emt 0:00:09]} O-O {[%emt 0:01:07]} 7. Nd5 {[%emt 0:01:43]} c6 {[%emt 0:04:23]} 8. Nxf6+ {[%emt 0:00:08]} Bxf6 {[%emt 0:00:11]} 9. Bxf6 {[%emt 0:00:19]} Rxf6 {[%emt 0:00:14]} 10. Nf3 {[%emt 0:00:24]} e5 {[%emt 0:01:33]} 11. O-O {[%emt 0:01:58]} Na6 {[%emt 0:01:42]} 12. d3 {[%emt 0:01:03]} Qe7 {[%emt 0:03:08]} 13. Nd2 {[%emt 0:02:48]} Bd7 {[%emt 0:03:54]} 14. e3 {[%emt 0:01:52]} f4 {[%emt 0:06:53]} 15. exf4 {[%emt 0:00:25]} exf4 {[%emt 0:00:12]} 16. Re1 {[%emt 0:00:21]} Qf7 {[%emt 0:01:09]} 17. Ne4 {[%emt 0:00:50]} Re6 {[%emt 0:01:43]} 18. Ng5 {[%emt 0:17:42]} Rxe1+ {[%emt 0:00:31]} 19. Qxe1 {[%emt 0:00:49]} Qf6 {[%emt 0:00:42]} 20. Ne4 {[%emt 0:00:36]} Qe5 {[%emt 0:01:50]} 21. d4 {[%emt 0:00:26]} Qe6 {[%emt 0:06:36]} 22. d5 {[%emt 0:07:41]} Qe5 {[%emt 0:06:16]} 23. gxf4 {[%emt 0:00:37]} Qxf4 {[%emt 0:00:57]} 24. Qc3 {[%emt 0:00:27]} Rf8 {[%emt 0:01:34]} 25. Qg3 {[%emt 0:01:34]} cxd5 {[%emt 0:06:30]} 26. Qxf4 {[%emt 0:05:20]} Rxf4 {[%emt 0:00:18]} 27. Nxd6 {[%emt 0:00:16]} dxc4 {[%emt 0:02:25]} 28. Bxb7 {[%emt 0:00:39]} Nc5 {[%emt 0:01:25]} 29. Bd5+ {[%emt 0:00:18]} Kg7 {[%emt 0:01:11]} 30. bxc4 {[%emt 0:04:06]} Nd3 {[%emt 0:02:21]} 31. f3 {[%emt 0:00:57]} Ne5 {[%emt 0:01:05]} 32. Re1 {[%emt 0:01:40]} Kf6 {[%emt 0:02:04]} 33. Ne4+ {[%emt 0:00:39]} Kf5 {[%emt 0:02:50]} 34. Nc5 {[%emt 0:03:02]} Bc8 {[%emt 0:04:07]} 35. Rxe5+ {[%emt 0:02:19]} Kxe5 {[%emt 0:00:10]} 36. Nd3+ {[%emt 0:00:02]} Kf5 {[%emt 0:00:14]} 37. Nxf4 {[%emt 0:00:09]} Kxf4 {[%emt 0:00:08]} 38. Kf2 {[%emt 0:00:01]} g5 {[%emt 0:00:39]} 39. Ke2 {[%emt 0:02:10]} h5 {[%emt 0:02:39]} 40. Kd3 {[%emt 0:00:35]} Ke5 {[%emt 0:03:23]} 41. Bf7 {[%emt 0:50:03]} h4 {[%emt 0:51:01]} 42. Bh5 {[%emt 0:02:15]} Bd7 {[%emt 0:02:05]} 43. Bg4 {[%emt 0:00:47]} Bc6 {[%emt 0:00:43]} 44. Ke3 {[%emt 0:02:15]} Be8 {[%emt 0:01:52]} 45. Bh3 {[%emt 0:02:17]} Bc6 {[%emt 0:00:20]} 46. Bg4 {[%emt 0:02:09]} Be8 {[%emt 0:00:11]} 47. Kd3 {[%emt 0:00:13]} Bc6 {[%emt 0:00:19]} 48. Kc3 {[%emt 0:00:04]} a5 {[%emt 0:00:12]} 49. Kd3 {[%emt 0:02:11]} Be8 {[%emt 0:00:20]} 50. Ke3 {[%emt 0:01:53]} Bf7 {[%emt 0:03:06]} 51. Kd3 {[%emt 0:00:11]} Be8 {[%emt 0:00:46]} 52. a3 {[%emt 0:00:52]} Bc6 {[%emt 0:00:43]} 53. Ke3 {[%emt 0:00:46]} Ba4 {[%emt 0:00:39]} 54. Bh3 {[%emt 0:00:28]} Bc6 {[%emt 0:00:34]} 55. Bf1 {[%emt 0:00:02]} Bd7 {[%emt 0:00:50]} 56. Bd3 {[%emt 0:00:31]} Be6 {[%emt 0:01:36]} 57. a4 {[%emt 0:04:08]} Bf7 {[%emt 0:01:27]} 58. Be2 {[%emt 0:00:39]} Be6 {[%emt 0:00:09]} 59. Bd3 {[%emt 0:01:55]} Bf7 {[%emt 0:00:18]} 60. Be2 {[%emt 0:04:01]} Be8 {[%emt 0:00:57]} 61. Bd1 {[%emt 0:00:10]} Bc6 {[%emt 0:01:02]} 62. Bb3 {[%emt 0:01:10]} Bb7 {[%emt 0:00:46]} 63. Bd1 {[%emt 0:00:00]} Bc6 {[%emt 0:00:00]} 64. Bc2 {[%emt 0:00:00]} 1/2-1/2

[Event "4NCL Div 2 2024-25"]
[Site "England"]
[Date "2025.04.05"]
[Round "7.24"]
[White "Ingram, Keith R"]
[Black "Rich, Aaron"]
[Result "0-1"]
[Annotator "NA"]
[ECO "B25"]
[WhiteElo "1954"]
[BlackElo "1919"]
[PlyCount "65"]
[EventDate "2024.11.23"]
[EventType "team-tourn"]
[EventCountry "ENG"]
[SourceTitle "playchess.com"]
[Source "ChessBase"]
[SourceQuality "1"]
[TimeControl "40/6000+30:3000+30"]

1. e4 {[%emt 1:41:00]} c5 {[%emt 1:41:00]} 2. Nc3 {[%emt 0:00:00]} Nc6 {[%emt 0:00:00]} 3. g3 {[%emt 0:00:00]} d6 {[%emt 0:00:00]} 4. Bg2 {[%emt 0:00:00]} g6 {[%emt 0:00:00]} 5. d3 {[%emt 0:00:00]} Bg7 {[%emt 0:00:00]} 6. Nge2 {[%emt 0:00:00]} Nf6 {[%emt 0:00:00]} 7. O-O {[%emt 0:00:00]} Bd7 {[%emt 0:00:00]} 8. Be3 {[%emt 0:00:00]} h5 {[%emt 0:00:00]} 9. d4 {[%emt 0:00:00]} cxd4 {[%emt 0:00:00]} 10. Nxd4 {[%emt 0:00:00]} h4 {[%emt 0:00:00]} 11. Nxc6 {[%emt 0:00:00]} bxc6 {[%emt 0:00:00]} 12. Bd4 {[%emt 0:00:00]} hxg3 {[%emt 0:00:00]} 13. fxg3 {[%emt 0:00:00]} e5 {[%emt 0:00:00]} 14. Be3 {[%emt 0:00:00]} Ng4 {[%emt 0:00:00]} 15. Qf3 {[%emt 0:00:00]} Be6 {[%emt 0:00:00]} 16. h4 {[%emt 0:00:00]} Nxe3 {[%emt 0:00:00]} 17. Qxe3 {[%emt 0:00:00]} Qb6 {[%emt 0:00:00]} 18. Qxb6 {[%emt 0:00:00]} axb6 {[%emt 0:00:00]} 19. Rad1 {[%emt 0:00:00]} Ke7 {[%emt 0:00:00]} 20. a3 {[%emt 0:00:00]} Bh6 {[%emt 0:00:00]} 21. Rfe1 {[%emt 0:00:00]} b5 {[%emt 0:00:00]} 22. Bf3 {[%emt 0:00:00]} g5 {[%emt 0:00:00]} 23. hxg5 {[%emt 0:00:00]} Bxg5 {[%emt 0:00:00]} 24. Kg2 {[%emt 0:00:00]} Rh7 {[%emt 0:00:00]} 25. Rh1 {[%emt 0:00:00]} Rg7 {[%emt 0:00:00]} 26. Kf2 {[%emt 0:00:00]} Rag8 {[%emt 0:00:00]} 27. Ne2 {[%emt 0:00:00]} Kd7 {[%emt 0:00:00]} 28. b3 {[%emt 0:00:00]} Bd8 {[%emt 0:00:00]} 29. Ra1 {[%emt 0:03:08]} Bb6+ {[%emt 0:00:00]} 30. Kg2 {[%emt 0:00:15]} Ra8 {[%emt 0:01:11]} 31. Rhd1 {[%emt 0:05:03]} Rgg8 {[%emt 0:03:24]} 32. Rd3 {[%emt 0:03:42]} Bc5 {[%emt 0:01:28]} 33. a4 {[%emt 0:00:00]} 0-1

[Event "4NCL Div 2 2024-25"]
[Site "England"]
[Date "2025.04.05"]
[Round "7.25"]
[White "Southcott-Moyers, Indy"]
[Black "Korshunov, Sergey And."]
[Result "1/2-1/2"]
[Annotator "ChessBase"]
[ECO "D37"]
[WhiteElo "2174"]
[BlackElo "2330"]
[PlyCount "62"]
[EventDate "2024.11.23"]
[EventType "team-tourn"]
[EventCountry "ENG"]
[SourceTitle "playchess.com"]
[Source "ChessBase"]
[SourceQuality "1"]
[TimeControl "40/6000+30:3000+30"]

1. d4 {[%emt 0:10:02]} Nf6 {[%emt 0:10:05]} 2. c4 {[%emt 0:00:05]} e6 {[%emt 0:00:03]} 3. Nf3 {[%emt 0:00:03]} d5 {[%emt 0:00:19]} 4. Nc3 {[%emt 0:00:05]} Nbd7 {[%emt 0:01:27]} 5. Bf4 {[%emt 0:03:40]} dxc4 {[%emt 0:00:53]} 6. e3 {[%emt 0:00:35]} Nd5 {[%emt 0:00:42]} 7. Bxc4 {[%emt 0:02:21]} Nxf4 {[%emt 0:00:08]} 8. exf4 {[%emt 0:00:08]} Bd6 {[%emt 0:03:03]} 9. g3 {[%emt 0:05:48]} Nb6 {[%emt 0:03:52]} 10. Bb3 {[%emt 0:02:37]} Bd7 {[%emt 0:05:16]} 11. O-O {[%emt 0:04:20]} O-O {[%emt 0:03:56]} 12. Re1 {[%emt 0:09:47]} Bc6 {[%emt 0:11:19]} 13. d5 {[%emt 0:17:28]} exd5 {[%emt 0:11:26]} 14. Nxd5 {[%emt 0:02:29]} h6 {[%emt 0:08:02]} 15. Nxb6 {[%emt 0:07:58]} axb6 {[%emt 0:00:04]} 16. Ne5 {[%emt 0:00:13]} Bxe5 {[%emt 0:06:18]} 17. fxe5 {[%emt 0:01:06]} Qg5 {[%emt 0:02:08]} 18. Qe2 {[%emt 0:05:08]} Rad8 {[%emt 0:05:33]} 19. Rad1 {[%emt 0:05:21]} Rxd1 {[%emt 0:04:22]} 20. Rxd1 {[%emt 0:01:14]} Re8 {[%emt 0:01:48]} 21. f4 {[%emt 0:05:45]} Qe7 {[%emt 0:00:44]} 22. Qd3 {[%emt 0:02:08]} Ra8 {[%emt 0:05:59]} 23. Qd4 {[%emt 0:03:17]} Bf3 {[%emt 0:05:01]} 24. Rd2 {[%emt 0:04:03]} Bg4 {[%emt 0:05:02]} 25. a3 {[%emt 0:00:27]} Bf5 {[%emt 0:03:04]} 26. Qb4 {[%emt 0:06:14]} Qe8 {[%emt 0:01:40]} 27. Qd4 {[%emt 0:00:41]} Rb8 {[%emt 0:01:47]} 28. Bd1 {[%emt 0:01:58]} Qc6 {[%emt 0:01:48]} 29. Qe3 {[%emt 0:01:28]} Qg6 {[%emt 0:02:49]} 30. Bf3 {[%emt 0:00:43]} h5 {[%emt 0:00:16]} 31. Kf2 {[%emt 0:00:33]} Bg4 {[%emt 0:02:34]} 1/2-1/2

[Event "4NCL Div 2 2024-25"]
[Site "England"]
[Date "2025.04.05"]
[Round "7.26"]
[White "Taylor, Adam A"]
[Black "Blackburn, Jonathan L B"]
[Result "0-1"]
[Annotator "ChessBase"]
[ECO "A00"]
[WhiteElo "2258"]
[BlackElo "2197"]
[PlyCount "138"]
[EventDate "2024.11.23"]
[EventType "team-tourn"]
[EventCountry "ENG"]
[SourceTitle "playchess.com"]
[Source "ChessBase"]
[SourceQuality "1"]
[TimeControl "40/6000+30:3000+30"]

1. b4 {[%emt 0:13:34]} e5 {[%emt 0:12:23]} 2. Bb2 {[%emt 0:00:53]} Bxb4 {[%emt 0:00:30]} 3. Bxe5 {[%emt 0:00:05]} Nf6 {[%emt 0:00:20]} 4. e3 {[%emt 0:00:49]} Nc6 {[%emt 0:00:23]} 5. Bb2 {[%emt 0:01:06]} O-O {[%emt 0:03:09]} 6. Nf3 {[%emt 0:00:18]} d5 {[%emt 0:04:12]} 7. c4 {[%emt 0:02:17]} Bg4 {[%emt 0:09:23]} 8. cxd5 {[%emt 0:02:15]} Qxd5 {[%emt 0:03:13]} 9. Be2 {[%emt 0:02:44]} Ne4 {[%emt 0:09:24]} 10. O-O {[%emt 0:09:27]} Rad8 {[%emt 0:05:17]} 11. Qc2 {[%emt 0:10:11]} Rfe8 {[%emt 0:10:12]} 12. d4 {[%emt 0:40:55]} Bd6 {[%emt 0:18:55]} 13. Nc3 {[%emt 0:03:11]} Nxc3 {[%emt 0:00:48]} 14. Bxc3 {[%emt 0:00:33]} Qh5 {[%emt 0:03:40]} 15. h3 {[%emt 0:04:37]} Bxh3 {[%emt 0:00:43]} 16. Ne5 {[%emt 0:03:20]} Qg5 {[%emt 0:01:12]} 17. Bf3 {[%emt 0:00:11]} Bxe5 {[%emt 0:05:54]} 18. dxe5 {[%emt 0:00:56]} Re6 {[%emt 0:03:16]} 19. Rad1 {[%emt 0:08:18]} Rde8 {[%emt 0:02:48]} 20. Bd5 {[%emt 0:01:57]} Rh6 {[%emt 0:01:42]} 21. f4 {[%emt 0:00:42]} Qg3 {[%emt 0:00:57]} 22. Qf2 {[%emt 0:02:33]} Qxf2+ {[%emt 0:00:14]} 23. Kxf2 {[%emt 0:00:36]} Bc8 {[%emt 0:01:02]} 24. Rd2 {[%emt 0:00:28]} Ne7 {[%emt 0:05:10]} 25. Be4 {[%emt 0:00:29]} b6 {[%emt 0:00:48]} 26. Rfd1 {[%emt 0:00:31]} f5 {[%emt 0:01:49]} 27. exf6 {[%emt 0:00:31]} gxf6 {[%emt 0:00:07]} 28. Rd8 {[%emt 0:00:19]} Kf7 {[%emt 0:00:40]} 29. Bf3 {[%emt 0:00:43]} Be6 {[%emt 0:02:01]} 30. a3 {[%emt 0:00:07]} Nc8 {[%emt 0:00:24]} 31. Bc6 {[%emt 0:00:23]} Rxd8 {[%emt 0:01:40]} 32. Rxd8 {[%emt 0:00:01]} Ke7 {[%emt 0:00:51]} 33. Rh8 {[%emt 0:00:58]} Bd7 {[%emt 0:01:11]} 34. Bxf6+ {[%emt 0:00:52]} Kxf6 {[%emt 0:00:56]} 35. Bxd7 {[%emt 0:00:05]} Nd6 {[%emt 0:00:05]} 36. Bc6 {[%emt 0:00:52]} Nc4 {[%emt 0:01:54]} 37. Rc8 {[%emt 0:00:29]} Ke7 {[%emt 0:00:52]} 38. Rxc7+ {[%emt 0:00:39]} Kd6 {[%emt 0:00:32]} 39. Rc8 {[%emt 0:00:06]} Nxa3 {[%emt 0:00:03]} 40. e4 {[%emt 0:00:12]} a5 {[%emt 0:00:45]} 41. e5+ {[%emt 0:25:14]} Kc5 {[%emt 0:23:07]} 42. f5 {[%emt 0:07:21]} Rxc6 {[%emt 0:01:17]} 43. Rd8 {[%emt 0:02:17]} Nc4 {[%emt 0:08:46]} 44. e6 {[%emt 0:00:15]} Nd6 {[%emt 0:04:53]} 45. g4 {[%emt 0:02:36]} Rc8 {[%emt 0:02:36]} 46. e7 {[%emt 0:08:27]} Rc7 {[%emt 0:00:22]} 47. Rxd6 {[%emt 0:01:08]} Rxe7 {[%emt 0:00:04]} 48. Rd1 {[%emt 0:00:08]} a4 {[%emt 0:05:52]} 49. Kf3 {[%emt 0:00:19]} a3 {[%emt 0:01:17]} 50. Kf4 {[%emt 0:02:26]} a2 {[%emt 0:02:18]} 51. f6 {[%emt 0:00:24]} Ra7 {[%emt 0:00:13]} 52. Ra1 {[%emt 0:00:48]} Kb4 {[%emt 0:00:31]} 53. Ke5 {[%emt 0:01:56]} Kb3 {[%emt 0:00:05]} 54. Ke6 {[%emt 0:00:53]} Kb2 {[%emt 0:00:10]} 55. f7 {[%emt 0:00:14]} Rxf7 {[%emt 0:00:03]} 56. Rxa2+ {[%emt 0:00:03]} Kxa2 {[%emt 0:00:03]} 57. Kxf7 {[%emt 0:00:05]} b5 {[%emt 0:00:02]} 58. Kg7 {[%emt 0:00:03]} b4 {[%emt 0:00:02]} 59. Kxh7 {[%emt 0:00:03]} b3 {[%emt 0:00:01]} 60. g5 {[%emt 0:00:10]} b2 {[%emt 0:00:03]} 61. g6 {[%emt 0:00:01]} b1=Q {[%emt 0:00:05]} 62. Kh8 {[%emt 0:00:06]} Qh1+ {[%emt 0:00:27]} 63. Kg8 {[%emt 0:00:05]} Kb3 {[%emt 0:00:24]} 64. g7 {[%emt 0:00:04]} Kc4 {[%emt 0:00:02]} 65. Kf8 {[%emt 0:00:09]} Qf3+ {[%emt 0:00:06]} 66. Ke7 {[%emt 0:00:06]} Qg4 {[%emt 0:00:05]} 67. Kf7 {[%emt 0:00:03]} Qf5+ {[%emt 0:00:03]} 68. Ke7 {[%emt 0:00:03]} Qg6 {[%emt 0:00:03]} 69. Kf8 {[%emt 0:00:10]} Qf6+ {[%emt 0:00:03]} 0-1